bitfinex/quotes_ETHUSD_20240816
["timestamp","ask_amount","ask_price","bid_price","bid_amount"]
[1723818203896,1.5,2580.8,2579.9,3.87606]
[1723818204101,2.2982,2581.1,2579.4,3.0]
[1723818204102,3.8755,2580.4,2579.6,3.87642]
[1723818204295,3.8755,2580.4,2579.4,3.0]
[1723818204296,3.87516,2580.6,2579.9,3.87607]
[1723818204535,3.8748,2580.8,2579.9,0.775244]
[1723818204749,1.5,2580.7,2579.9,3.87606]
[1723818204965,2.2982,2581.1,2580.0,0.07751914]
[1723818205256,1.5,2581.4,2580.6,3.87495]
[1723818205257,3.87387,2581.4,2580.6,3.87495]
[1723818205473,3.87386,2581.5,2580.8,3.87475]
[1723818205612,3.87386,2581.5,2580.0,0.2809306]
[1723818205613,3.87316,2581.9,2581.1,3.87428]
[1723818205811,3.87316,2581.9,2581.1,3.87424]
[1723818206012,5.37327,2581.8,2580.9,3.87458]
[1723818206213,0.924643,2581.7,2580.7,3.87485]
[1723818206434,3.87448,2581.0,2580.3,6.87546]
[1723818206635,3.87428,2581.2,2580.5,3.87518]
[1723818206838,3.87472,2580.9,2580.0,4.1567606]
[1723818207021,3.87404,2581.3,2580.4,3.87525]
[1723818207243,3.87404,2581.3,2579.8,3.07751124]
[1723818207244,5.37354,2581.7,2580.9,3.87448]
[1723818207425,3.87374,2581.5,2580.2,3.0]
[1723818207716,1.74897,2582.0,2580.2,3.0]
[1723818207717,3.87317,2581.9,2581.2,3.87415]
[1723818207943,4.684354,2581.9,2581.1,3.87429]
[1723818208257,4.684354,2581.9,2581.1,3.87431]
[1723818208554,4.684334,2581.9,2581.0,3.87432]
[1723818208752,4.3666004,2581.8,2581.0,3.87432]
[1723818209077,3.87343,2581.7,2580.8,3.87471]
[1723818209356,3.87343,2581.7,2580.3,3.8755]
[1723818209357,3.87399,2581.4,2580.1,2.2933]
[1723818209651,0.43667604,2581.6,2581.2,3.8741]
[1723818209856,3.87329,2581.8,2581.0,3.87436]
[1723818210162,0.46154404,2581.8,2581.1,3.87431]
[1723818210461,4.33491404,2581.8,2581.0,3.87436]
[1723818210626,3.87489,2580.8,2579.6,2.3365]
[1723818210832,0.08218861,2580.8,2580.2,3.87552]
[1723818211046,3.87455,2581.0,2580.2,3.87552]
[1723818211245,3.87489,2580.8,2580.0,3.87592]
[1723818211559,0.08218861,2580.7,2580.1,3.87579]
[1723818211873,3.87519,2580.6,2579.8,3.87616]
[1723818212263,0.39570786,2580.7,2580.1,3.87567]
[1723818212431,4.3843204,2580.6,2579.8,3.87615]
[1723818212631,3.87554,2580.3,2579.6,6.21293]
[1723818212832,0.5092404,2580.6,2579.8,3.87617]
[1723818212833,3.87537,2580.4,2579.8,3.87617]
[1723818213032,3.87456,2581.0,2580.2,3.87553]
[1723818213264,3.87463,2580.9,2580.2,3.87553]
[1723818213446,4.5687001,2581.0,2580.2,3.87553]
[1723818213773,4.5687001,2581.0,2580.3,3.87539]
[1723818213977,4.5687001,2581.0,2580.2,3.87553]
[1723818214146,4.5687001,2581.0,2580.4,3.87535]
[1723818214147,0.6941401,2581.0,2580.4,3.87535]
[1723818214348,0.6941401,2581.0,2579.7,3.0]
[1723818214349,6.16867,2581.2,2580.6,3.87497]
[1723818214536,3.87443,2581.1,2580.4,3.87533]
[1723818214744,3.87438,2581.1,2580.4,3.87527]
[1723818214946,1.00426,2581.2,2580.1,3.87572]
[1723818215189,2.3547,2581.7,2579.8,0.621287]
[1723818215190,2.3547,2581.7,2580.8,3.87465]
[1723818215686,3.87389,2581.4,2580.8,3.87465]
[1723818215995,3.87426,2581.2,2580.4,3.87531]
[1723818216148,3.87426,2581.2,2580.2,3.87556]
[1723818216149,3.87474,2580.9,2580.2,3.87556]
[1723818216483,0.46966261,2580.8,2580.2,3.87556]
[1723818216686,0.08218861,2580.7,2580.2,3.87556]
[1723818216847,0.387474,2580.8,2580.2,3.87556]
[1723818217048,3.87462,2580.9,2580.2,3.87552]
[1723818217256,2.3547,2581.7,2580.6,3.87505]
[1723818217257,3.87378,2581.5,2580.6,3.87505]
[1723818217448,3.87411,2581.3,2580.6,3.87505]
[1723818217687,0.387411,2581.2,2580.6,3.87505]
[1723818217902,3.87376,2581.5,2580.8,3.87466]
[1723818218249,3.87376,2581.5,2580.2,3.87552]
[1723818218250,1.5,2581.2,2580.2,3.87552]
[1723818218448,3.87493,2580.7,2580.0,3.87584]
[1723818218651,0.08218861,2581.1,2579.8,3.87619]
[1723818218652,3.87549,2580.4,2579.8,3.87619]
[1723818218949,3.87577,2580.2,2579.6,3.87652]
[1723818219148,3.9896,2580.9,2579.4,3.87674]
[1723818219149,0.08218861,2580.1,2579.4,3.87674]
[1723818219349,0.08218861,2580.1,2578.2,3.87867]
[1723818219350,3.95814861,2580.1,2578.5,2.6701]
[1723818219562,3.87552,2580.3,2579.5,3.87662]
[1723818219776,3.95794861,2580.2,2579.5,3.87663]
[1723818220047,0.39579486,2580.1,2579.7,3.87638]
[1723818220282,3.87563,2580.3,2579.7,3.87633]
[1723818220482,0.387563,2580.2,2579.7,3.87633]
[1723818220690,0.387563,2580.2,2579.8,3.87626]
[1723818220988,0.387563,2580.2,2579.6,3.87645]
[1723818220989,3.87568,2580.2,2579.6,3.87645]
[1723818221288,1.89896,2580.8,2579.7,3.87631]
[1723818221585,3.87513,2580.6,2579.2,2.2705]
[1723818221792,3.87411,2581.3,2580.5,3.87515]
[1723818222098,3.87465,2580.9,2580.3,3.87543]
[1723818222396,0.774793,2581.3,2579.9,3.87607]
[1723818222397,4.648833,2581.3,2580.5,3.87511]
[1723818222599,3.87404,2581.3,2580.7,3.87487]
[1723818222748,3.87475,2580.9,2579.9,3.0]
[1723818223103,3.87475,2580.9,2579.6,2.3332]
[1723818223104,3.87461,2580.9,2580.1,3.87571]
[1723818223251,0.387404,2581.2,2580.1,3.87571]
[1723818223252,7.75006,2580.7,2580.1,3.87581]
[1723818223600,3.95727861,2580.6,2579.8,3.87617]
[1723818223807,3.95727861,2580.6,2579.0,2.7215]
[1723818223808,0.39572786,2580.5,2579.0,2.7215]
[1723818224016,1.5,2580.7,2579.4,3.87686]
[1723818224017,3.87575,2580.2,2579.4,3.87686]
[1723818224217,3.87621,2579.9,2579.2,3.87707]
[1723818224501,4.73374561,2579.8,2579.0,3.87738]
[1723818224807,4.73374561,2579.8,2578.5,2.3358]
[1723818224808,0.08218861,2579.7,2578.5,2.3358]
[1723818225028,3.87696,2579.4,2578.7,3.87783]
[1723818225308,0.08218861,2579.3,2578.7,3.87783]
[1723818225611,0.08218861,2579.3,2578.1,3.8787]
[1723818225612,3.87791,2578.8,2578.1,3.8787]
[1723818225826,0.387791,2578.7,2578.2,3.87865]
[1723818225959,0.387791,2578.7,2577.7,2.2737]
[1723818225960,0.08218861,2578.6,2578.1,0.39759759]
[1723818226384,0.4265471,2578.7,2578.2,3.87867]
[1723818226600,3.87737,2579.1,2578.2,3.87867]
[1723818226906,3.87737,2579.1,2578.2,3.87856]
[1723818227120,3.87684,2579.5,2578.3,3.87838]
[1723818227263,5.764072,2579.7,2579.0,3.87733]
[1723818227264,7.753,2579.7,2579.0,3.87733]
[1723818227464,7.753,2579.7,2578.5,2.4236]
[1723818227465,1.02415,2579.7,2579.2,3.87709]
[1723818227688,2.4885,2579.8,2579.2,3.87709]
[1723818227689,2.4885,2579.8,2579.4,3.87683]
[1723818227892,3.87585,2580.1,2579.4,7.7536]
[1723818228094,2.3554,2580.6,2579.0,3.87741]
[1723818228402,3.87531,2580.5,2579.6,3.8765]
[1723818228637,0.08218861,2580.4,2579.4,3.87681]
[1723818228768,0.23554,2580.5,2579.2,3.0]
[1723818228769,3.87591,2580.1,2579.2,6.87711]
[1723818228971,3.87591,2580.1,2579.2,3.87707]
[1723818228972,3.87613,2579.9,2579.2,3.87707]
[1723818229604,3.87613,2579.9,2579.3,3.87691]
[1723818229995,3.87613,2579.9,2579.2,3.87707]
[1723818229996,7.75239,2579.9,2579.2,3.87707]
[1723818230312,4.1108,2580.5,2579.6,3.87647]
[1723818230465,0.23554,2580.5,2579.4,3.8768]
[1723818230668,6.23048,2580.6,2579.8,3.87625]
[1723818230872,2.3554,2580.6,2579.9,0.07751924]
[1723818231169,6.33627,2581.0,2579.9,0.07751924]
[1723818231393,0.537447,2580.9,2580.3,3.87536]
[1723818231580,4.412147,2580.9,2580.3,3.87536]
[1723818231780,4.9496117,2580.8,2580.2,3.87562]
[1723818232020,1.0748417,2580.8,2580.3,3.8755]
[1723818232305,6.33628,2581.0,2580.4,3.87535]
[1723818232607,3.87477,2580.8,2579.7,3.0]
[1723818232768,3.87477,2580.8,2580.2,3.87565]
[1723818232975,6.33631,2581.0,2580.0,3.87588]
[1723818233313,3.87485,2580.8,2580.0,3.87588]
[1723818233614,2.4618,2581.0,2579.6,5.281]
[1723818233615,6.33633,2581.0,2579.8,3.87623]
[1723818233834,10.2109,2581.0,2580.3,3.87541]
[1723818233981,3.87479,2580.8,2580.1,3.87569]
[1723818234182,4.508449,2580.8,2580.3,3.87551]
[1723818234420,3.87538,2580.4,2579.7,3.87632]
[1723818234592,3.95779861,2580.3,2579.7,3.87632]
[1723818234795,3.87515,2580.6,2579.9,3.8761]
[1723818234995,3.87515,2580.6,2580.0,3.87594]
[1723818235220,3.87515,2580.6,2580.0,7.75181]
[1723818235427,0.633659,2580.8,2580.3,3.87543]
[1723818235731,2.4618,2581.0,2580.3,3.87543]
[1723818235732,2.4618,2581.0,2580.5,3.87509]
[1723818236044,2.4931,2581.6,2581.2,3.87406]
[1723818236185,2.4931,2582.0,2581.5,3.87371]
[1723818236525,2.4931,2582.0,2580.5,3.48903638]
[1723818236836,3.87396,2581.4,2580.8,3.87467]
[1723818236983,7.74736,2581.6,2580.9,3.87461]
[1723818237183,7.74736,2581.6,2580.7,3.8748]
[1723818237184,3.87336,2581.8,2580.7,0.43638364]
[1723818237413,3.87334,2581.8,2580.8,0.68748]
[1723818237608,3.87366,2581.6,2580.7,0.43638364]
[1723818237808,3.87366,2581.6,2580.5,3.87521]
[1723818238107,0.39931,2581.9,2580.4,3.0]
[1723818238108,3.87421,2581.2,2580.4,3.0]
[1723818238304,3.87457,2581.0,2580.1,2.2637]
[1723818238508,3.87478,2580.8,2580.1,2.2637]
[1723818238709,4.649715,2580.8,2579.8,0.3687632]
[1723818238908,2.4722,2581.3,2579.8,0.3687632]
[1723818238909,3.87432,2581.1,2579.8,0.3687632]
[1723818239151,2.4722,2581.3,2579.8,0.3687632]
[1723818239152,3.87457,2581.0,2579.8,0.3687632]
[1723818239452,3.87485,2580.8,2579.8,0.3687632]
[1723818239609,3.87453,2581.0,2579.9,3.8761]
[1723818239806,4.261983,2581.0,2579.8,0.3687632]
[1723818240052,4.261983,2581.0,2579.9,7.7521]
[1723818240371,2.4722,2581.3,2580.3,3.87548]
[1723818240546,3.87466,2580.9,2579.8,4.12551024]
[1723818240847,3.87466,2580.9,2579.8,3.0]
[1723818241534,3.87466,2580.9,2579.9,3.8761]
[1723818241847,0.08218861,2580.8,2579.4,0.75678091]
[1723818242071,3.87508,2580.6,2579.4,3.87679]
[1723818242352,8.137136,2580.8,2579.8,3.87613]
[1723818242559,3.875,2580.7,2579.8,3.87613]
[1723818242859,4.262266,2580.8,2579.6,3.87647]
[1723818242860,1.2012136,2580.6,2579.6,3.87647]
[1723818243019,4.262256,2580.8,2579.4,0.6788712]
[1723818243020,4.262256,2580.8,2579.8,7.75234]
[1723818243221,3.87515,2580.6,2579.6,3.87649]
[1723818243461,0.387515,2580.5,2579.8,3.87617]
[1723818243628,6.25595,2581.0,2580.1,3.87573]
[1723818243833,7.74969,2580.8,2579.9,3.87598]
[1723818244043,7.74969,2580.8,2579.4,7.63360091]
[1723818244044,0.08218861,2580.7,2579.5,3.87662]
[1723818244266,6.24401,2580.3,2579.6,3.0]
[1723818244472,10.11959,2580.3,2579.4,6.87673]
[1723818244623,6.24396,2580.3,2579.4,3.0]
[1723818244819,3.87612,2579.9,2579.1,3.87723]
[1723818245023,3.87612,2579.9,2579.0,0.39778767]
[1723818245024,7.405959,2580.3,2579.4,3.87686]
[1723818245227,7.405959,2580.3,2579.0,0.39778767]
[1723818245228,3.87583,2580.1,2579.0,0.39778767]
[1723818245461,2.3684,2580.3,2579.0,4.27522767]
[1723818245664,2.3684,2580.3,2579.5,3.87658]
[1723818245863,3.8765,2579.7,2579.0,0.39778767]
[1723818246074,3.87679,2579.5,2579.0,0.39778767]
[1723818246225,3.87679,2579.5,2578.6,3.87798]
[1723818246226,3.87704,2579.3,2578.6,3.87798]
[1723818246426,3.87704,2579.3,2578.7,3.87782]
[1723818246651,3.87704,2579.3,2578.8,3.87775]
[1723818246863,0.63272786,2579.4,2578.8,3.87768]
[1723818247074,0.63272786,2579.4,2578.5,3.87813]
[1723818247232,2.3683,2579.6,2578.7,3.87783]
[1723818247429,2.3683,2579.6,2579.1,3.87721]
[1723818247671,0.23684,2580.2,2579.5,3.87664]
[1723818247672,2.4467,2580.0,2579.5,3.87664]
[1723818247827,3.102642,2580.0,2578.8,3.0]
[1723818248026,2.4467,2580.0,2579.2,3.87712]
[1723818248263,3.87515,2580.6,2579.8,3.87617]
[1723818248562,3.87567,2580.2,2579.3,3.0]
[1723818248725,3.87544,2580.4,2579.2,0.80248875]
[1723818248726,3.87544,2580.4,2579.8,3.87625]
[1723818248927,2.4467,2580.7,2580.0,3.87583]
[1723818248928,6.32164,2580.7,2580.0,3.87583]
[1723818249170,2.4467,2580.7,2580.2,3.87566]
[1723818249330,5.37419,2581.2,2579.3,6.34398]
[1723818249331,3.87453,2581.0,2580.3,3.87537]
[1723818249530,2.984119,2581.1,2579.7,3.87631]
[1723818249854,5.535,2581.7,2579.7,3.87631]
[1723818249855,3.87567,2580.2,2579.7,3.87631]
[1723818250037,3.87553,2580.3,2579.5,3.0]
[1723818250038,3.87584,2580.1,2579.5,3.0]
[1723818250239,3.87584,2580.1,2579.5,7.75331]
[1723818250439,3.87584,2580.1,2579.5,3.87667]
[1723818250637,3.87584,2580.1,2579.3,3.87698]
[1723818250638,7.75174,2580.1,2579.3,3.87691]
[1723818250882,0.08218861,2580.0,2579.3,3.87691]
[1723818251088,3.87626,2579.9,2579.3,3.87691]
[1723818251246,3.87653,2579.7,2579.1,3.87722]
[1723818251569,3.87653,2579.7,2578.9,4.30439302]
[1723818251570,2.57288861,2579.6,2578.9,4.30436302]
[1723818251774,2.57288861,2579.6,2579.1,3.87731]
[1723818251933,2.4907,2579.6,2579.1,3.87724]
[1723818252456,2.4907,2579.6,2579.1,7.75448]
[1723818252661,3.8765,2579.7,2579.1,3.87722]
[1723818252842,0.08218861,2579.9,2578.9,4.30440302]
[1723818253041,3.8768,2579.5,2579.0,3.87739]
[1723818253242,3.8768,2579.5,2578.9,4.30438302]
[1723818253572,7.75299,2579.7,2579.1,3.87724]
[1723818253768,3.87649,2579.7,2579.1,3.87724]
[1723818254074,2.4907,2580.0,2579.2,3.87714]
[1723818254273,3.87635,2579.8,2579.2,3.87713]
[1723818254485,3.87635,2579.8,2579.3,3.877]
[1723818254651,6.36672,2580.0,2579.4,3.87686]
[1723818254838,6.44885861,2580.0,2579.4,3.87686]
[1723818255042,7.09374447,2580.0,2579.4,3.87678]
[1723818255358,3.87629,2579.8,2579.2,7.75417]
[1723818255695,7.09374447,2580.0,2579.2,3.87716]
[1723818255696,3.13558586,2580.0,2579.2,3.87716]
[1723818255837,3.8764,2579.8,2579.2,3.87716]
[1723818256033,2.4907,2580.0,2578.9,0.42685302]
[1723818256034,3.87657,2579.6,2578.9,0.42685302]
[1723818256359,2.4907,2580.0,2579.0,3.87738]
[1723818256360,7.75275,2579.8,2579.0,3.87738]
[1723818256560,2.4907,2580.0,2579.6,3.87647]
[1723818256757,3.87545,2580.4,2579.4,3.87673]
[1723818256758,6.14525,2580.4,2579.4,3.87673]
[1723818256964,10.02073,2580.4,2579.8,3.87616]
[1723818257148,3.87556,2580.3,2579.7,7.75268]
[1723818257347,3.87556,2580.3,2579.7,3.87633]
[1723818257533,3.271873,2580.4,2579.5,3.87663]
[1723818257767,3.87577,2580.2,2579.5,3.87663]
[1723818257946,3.87604,2580.0,2579.5,3.87671]
[1723818258336,3.87624,2579.9,2579.3,3.87692]
[1723818258704,2.2774,2579.8,2579.3,3.877]
[1723818258892,2.2774,2579.8,2578.7,7.45]
[1723818259050,3.87652,2579.7,2579.0,3.87736]
[1723818259236,3.87652,2579.7,2579.2,3.87706]
[1723818259985,2.2774,2579.8,2579.2,3.87706]
[1723818260290,2.2774,2579.8,2579.3,3.87692]
[1723818260589,2.2774,2579.8,2579.1,3.87721]
[1723818260768,6.15375,2579.8,2579.2,3.87707]
[1723818260956,7.15674,2579.8,2579.2,3.87707]
[1723818262270,7.15674,2579.8,2579.3,3.87701]
[1723818262474,3.87591,2580.1,2578.9,0.485071]
[1723818262674,2.4594,2580.2,2579.4,3.87682]
[1723818262983,2.4594,2580.6,2579.7,3.87631]
[1723818263185,7.75063,2580.5,2579.9,3.87611]
[1723818263388,3.87529,2580.5,2579.9,3.87611]
[1723818263555,3.87538,2580.4,2579.9,3.87611]
[1723818263883,3.87562,2580.3,2579.8,3.87625]
[1723818264085,3.87567,2580.2,2579.6,3.87643]
[1723818264545,4.76070992,2580.2,2579.6,3.87643]
[1723818264753,3.87554,2580.3,2579.6,3.87643]
[1723818264989,3.87582,2580.1,2579.6,3.87643]
[1723818265493,3.87582,2580.1,2578.8,0.80248875]
[1723818265494,3.87627,2579.8,2578.8,0.80248875]
[1723818265644,3.87627,2579.8,2578.5,0.39785536]
[1723818265645,3.8765,2579.7,2579.1,3.87722]
[1723818265846,3.87627,2579.8,2579.3,3.87701]
[1723818266089,2.4264,2579.9,2579.4,3.87677]
[1723818266384,6.23269,2580.3,2579.6,3.87654]
[1723818266583,2.3571,2580.3,2579.0,2.2764]
[1723818266803,2.3571,2580.3,2579.8,3.87617]
[1723818266950,6.23269,2580.3,2579.8,3.87617]
[1723818267146,6.23269,2580.3,2580.0,3.87588]
[1723818267147,2.3571,2580.3,2580.0,3.87588]
[1723818267800,2.3571,2580.3,2579.8,3.87618]
[1723818268099,2.59281,2580.3,2579.8,3.87618]
[1723818268320,6.23262,2580.3,2579.8,3.87618]
[1723818268482,3.87573,2580.2,2579.4,4.63362374]
[1723818268692,3.87619,2579.9,2579.2,7.63390374]
[1723818268884,3.87619,2579.9,2579.2,6.87702]
[1723818269086,3.87619,2579.9,2579.1,0.98452374]
[1723818269087,3.87611,2579.9,2579.1,0.98452374]
[1723818269303,7.75244,2579.9,2579.3,3.87695]
[1723818269618,3.87619,2579.9,2579.3,3.87695]
[1723818270125,3.87619,2579.9,2579.2,3.87708]
[1723818270126,3.87642,2579.7,2579.2,3.87713]
[1723818270280,3.87642,2579.7,2579.0,3.87736]
[1723818270472,3.87672,2579.5,2579.0,3.87736]
[1723818270817,3.87672,2579.5,2578.9,0.75692894]
[1723818271017,1.09801147,2579.5,2578.6,3.87799]
[1723818271317,3.8229,2579.7,2579.1,3.87724]
[1723818271318,2.3229,2579.7,2579.1,3.87724]
[1723818271517,2.3229,2579.7,2578.7,4.63482894]
[1723818271518,3.87673,2579.5,2578.8,0.75692894]
[1723818271726,3.87673,2579.5,2578.9,7.75499]
[1723818272022,3.87673,2579.5,2578.9,3.87754]
[1723818272169,3.87673,2579.5,2579.0,3.87745]
[1723818272366,6.19937,2579.7,2578.7,3.87779]
[1723818272605,6.19937,2579.7,2579.1,3.87724]
[1723818272804,3.8768,2579.5,2578.8,3.87765]
[1723818273103,3.87665,2579.6,2579.0,3.87738]
[1723818273301,6.8581189,2579.7,2578.6,4.27575072]
[1723818273302,2.3229,2579.7,2579.1,0.387738]
[1723818273504,2.3229,2579.7,2579.2,3.87707]
[1723818273665,2.3229,2579.7,2579.0,3.87738]
[1723818273666,3.87664,2579.6,2579.0,3.87738]
[1723818273871,3.87664,2579.6,2578.8,3.87767]
[1723818273872,3.87672,2579.5,2578.8,3.87767]
[1723818274176,2.3229,2579.7,2579.3,3.87693]
[1723818274489,3.87607,2580.0,2579.4,3.87673]
[1723818274692,3.87613,2579.9,2579.4,3.87673]
[1723818275027,3.8765,2579.7,2579.0,4.63427894]
[1723818275316,3.87657,2579.6,2579.1,3.87723]
[1723818275517,3.87646,2579.7,2579.2,3.87714]
[1723818275712,6.13734,2580.1,2578.7,0.75692894]
[1723818275713,6.13734,2580.1,2579.5,3.87659]
[1723818275867,6.13734,2580.1,2579.1,4.63416894]
[1723818275868,2.2615,2580.1,2579.2,0.75692894]
[1723818276079,3.87653,2579.7,2578.9,3.8775]
[1723818276424,4.10214,2580.0,2578.6,3.39770072]
[1723818276425,3.87681,2579.5,2578.8,4.63460894]
[1723818276620,4.414093,2579.7,2579.1,3.87718]
[1723818276772,3.87644,2579.7,2579.1,3.87718]
[1723818276967,3.87642,2579.7,2579.2,3.87716]
[1723818277173,4.10214,2580.0,2579.4,3.87677]
[1723818277400,7.75204,2580.0,2579.4,7.75355]
[1723818277581,3.87599,2580.0,2579.5,3.87664]
[1723818277887,0.613749,2579.9,2579.5,3.87664]
[1723818278082,1.5,2579.8,2578.7,0.33977007]
[1723818278283,3.87664,2579.6,2579.1,3.87724]
[1723818278497,3.87694,2579.4,2578.9,3.87759]
[1723818278703,3.87694,2579.4,2578.7,3.8778]
[1723818279181,3.87611,2579.9,2579.4,3.87673]
[1723818279382,2.3432,2580.1,2579.6,3.87644]
[1723818279586,6.21909,2580.1,2579.6,3.87644]
[1723818279783,6.21909,2580.1,2579.7,3.87641]
[1723818279784,2.3432,2580.1,2579.7,3.87641]
[1723818280216,2.3432,2580.1,2579.8,3.87624]
[1723818280422,6.12764,2580.5,2579.8,3.87624]
[1723818280610,6.12764,2580.5,2579.8,3.87616]
[1723818280611,4.488134,2580.4,2579.8,3.87616]
[1723818280819,2.2524,2580.5,2580.1,3.87567]
[1723818281000,3.8742,2581.2,2580.2,0.07751088]
[1723818281001,2.2524,2580.9,2580.2,0.07751088]
[1723818281325,6.16451,2581.3,2580.8,3.87476]
[1723818281526,6.16451,2581.3,2580.6,3.87503]
[1723818281527,3.87419,2581.2,2580.4,3.87529]
[1723818281686,0.616451,2581.2,2580.7,3.87477]
[1723818281883,2.2905,2581.3,2580.9,3.87457]
[1723818282228,2.2905,2581.3,2580.4,3.87531]
[1723818282391,2.2905,2581.3,2580.5,3.87518]
[1723818282392,3.87455,2581.0,2580.5,3.87518]
[1723818282593,3.87455,2581.0,2580.3,3.87537]
[1723818282835,0.46964361,2580.9,2580.1,3.87572]
[1723818282990,2.2905,2580.8,2579.6,3.87651]
[1723818283190,2.2905,2580.8,2579.7,3.70612988]
[1723818283191,4.15102436,2580.7,2579.7,3.70612988]
[1723818283521,7.75028,2580.6,2579.7,3.0]
[1723818283832,3.87515,2580.6,2579.9,3.87602]
[1723818283990,0.27601436,2580.7,2580.0,3.87583]
[1723818284189,4.15096436,2580.7,2580.0,3.87583]
[1723818284428,4.90672944,2580.6,2580.0,3.87583]
[1723818284798,1.03162944,2580.6,2580.2,3.87563]
[1723818285013,2.2905,2580.8,2580.3,3.87546]
[1723818285488,2.2905,2580.8,2580.4,3.87526]
[1723818285689,4.10327,2581.2,2580.0,3.87591]
[1723818285690,6.48067,2581.2,2580.0,3.87591]
[1723818285931,2.3774,2581.2,2580.8,3.87465]
[1723818286110,6.25106,2581.6,2581.0,3.87446]
[1723818286348,6.25106,2581.6,2580.8,3.87464]
[1723818286349,0.08218861,2581.5,2580.8,3.87464]
[1723818286530,3.87404,2581.3,2580.8,3.87464]
[1723818286737,6.25104,2581.6,2580.6,3.87498]
[1723818286937,6.25104,2581.6,2580.6,4.262481]
[1723818287290,5.03738929,2582.2,2580.7,0.07748412]
[1723818287291,2.4557,2582.2,2580.7,0.07748412]
[1723818287423,2.4557,2582.2,2580.9,0.80248875]
[1723818287424,3.87298,2582.0,2580.9,0.80248875]
[1723818287790,2.4562,2581.2,2580.4,0.80248875]
[1723818288085,3.87477,2580.8,2580.1,3.87573]
[1723818288225,0.08218861,2580.7,2580.1,3.87573]
[1723818288423,2.489,2580.5,2579.5,0.80248875]
[1723818288681,2.489,2580.5,2580.0,3.87596]
[1723818288971,2.489,2580.5,2579.3,5.2358604]
[1723818288972,2.489,2580.5,2579.4,3.28293193]
[1723818289174,2.489,2580.5,2579.6,3.87646]
[1723818289175,3.87553,2580.3,2579.6,3.87646]
[1723818289459,3.87553,2580.3,2579.3,2.412]
[1723818289460,2.489,2580.5,2579.9,3.87601]
[1723818289669,2.489,2580.5,2580.2,3.87563]
[1723818289830,3.87482,2580.8,2580.2,3.87563]
[1723818289831,6.14802,2580.8,2580.2,3.87563]
[1723818290027,0.387482,2580.7,2580.2,3.87555]
[1723818290647,4.262402,2580.7,2580.0,3.87585]
[1723818290964,1.0410422,2580.6,2580.2,3.87563]
[1723818291136,0.387482,2580.7,2580.2,3.87563]
[1723818291336,0.387482,2580.7,2580.0,3.87584]
[1723818291539,0.387482,2580.7,2579.9,3.87601]
[1723818291540,3.87527,2580.5,2579.9,3.87601]
[1723818291728,2.2732,2580.8,2579.9,3.87601]
[1723818291729,2.2732,2580.8,2580.4,3.87525]
[1723818291924,3.87498,2580.7,2579.8,0.38762]
[1723818292259,4.1023,2580.7,2580.0,3.87584]
[1723818292439,2.2732,2580.8,2579.6,2.90127328]
[1723818292640,6.5931,2581.1,2580.4,3.87522]
[1723818292859,6.5931,2581.1,2579.7,5.69995392]
[1723818292860,3.87463,2580.9,2580.2,3.87559]
[1723818293188,3.87516,2580.6,2580.0,3.87591]
[1723818293362,3.87516,2580.6,2579.7,3.0]
[1723818293363,2.3924,2580.4,2579.7,3.0]
[1723818293541,3.87523,2580.5,2580.0,3.87586]
[1723818293926,3.87501,2580.7,2580.1,3.87579]
[1723818294095,4.262511,2580.7,2580.1,3.87579]
[1723818294254,4.262511,2580.7,2580.2,3.87566]
[1723818294592,2.3924,2581.0,2580.4,3.87527]
[1723818294736,6.2669,2581.0,2580.4,4.262777]
[1723818294935,6.2669,2581.0,2580.4,3.87525]
[1723818295136,2.3924,2581.0,2580.4,3.87525]
[1723818295338,2.3415,2581.3,2580.8,3.87462]
[1723818295582,5.42710816,2582.0,2580.4,3.87532]
[1723818295583,2.325,2581.6,2581.3,3.87396]
[1723818295933,2.325,2581.6,2581.1,3.87419]
[1723818296340,2.325,2581.6,2580.8,0.07747523]
[1723818296341,2.325,2582.0,2581.2,0.0774752]
[1723818296647,2.325,2582.0,2580.8,3.87473]
[1723818296648,3.87315,2581.9,2580.8,3.0]
[1723818296835,3.87315,2581.9,2581.3,3.8739]
[1723818297032,2.325,2582.0,2581.3,3.8739]
[1723818297237,2.325,2582.0,2581.4,3.87378]
[1723818297238,6.19807,2582.0,2581.4,3.87378]
[1723818297537,7.74634,2581.9,2581.3,3.8739]
[1723818297747,3.87312,2581.9,2581.3,3.8739]
[1723818297952,3.87343,2581.7,2581.1,3.8742]
[1723818298165,3.87343,2581.7,2581.1,7.74842]
[1723818298376,0.7205213,2581.8,2580.8,3.0]
[1723818298608,7.74706,2581.7,2581.0,3.87441]
[1723818298751,3.87352,2581.7,2580.9,3.87452]
[1723818298952,3.87317,2581.9,2581.1,3.87431]
[1723818299153,6.19388,2581.4,2580.7,7.74965]
[1723818299351,6.19388,2581.4,2580.5,3.387525]
[1723818299352,3.87425,2581.2,2580.5,11.137755]
[1723818299594,2.32,2581.4,2580.5,11.137755]
[1723818299595,2.32,2581.4,2580.5,3.8751]
[1723818299794,3.8744,2581.1,2580.5,3.8751]
[1723818300113,3.87425,2581.2,2580.6,3.87495]
[1723818300384,3.87434,2581.1,2580.5,3.87512]
[1723818300615,3.87442,2581.1,2580.5,3.87512]
[1723818300752,4.67330389,2581.1,2580.5,3.87512]
[1723818301092,0.24021886,2581.3,2580.8,3.87476]
[1723818301336,6.19394,2581.4,2580.8,3.87467]
[1723818301591,6.19394,2581.4,2581.0,3.87435]
[1723818301592,2.32,2581.4,2581.0,3.87435]